fUST/lending_fUST_20250901
["ID","MTS","AMOUNT","RATE_DAILY","PERIOD"]
[382653366,1756696640501,-300.0,0.00015925,2]
[382653367,1756696640529,-1200.0,0.00015925,2]
[382653368,1756696640559,-285.0,0.00015926,2]
[382653369,1756696640589,-1200.0,0.00015926,2]
[382653370,1756696640620,-756.96,0.00015926,2]
[382653371,1756696640652,-480.0,0.00015926,2]
[382653372,1756696640681,-478.43128312,0.00015926,2]
[382653373,1756696640816,-1.56871688,0.00015926,2]
[382653374,1756696640844,-480.0,0.00015926,2]
[382653375,1756696640874,-480.0,0.00015926,2]
[382653376,1756696640907,-480.0,0.00015926,2]
[382653377,1756696640935,-480.0,0.00015926,2]
[382653378,1756696640963,-480.0,0.00015926,2]
[382653379,1756696640992,-480.0,0.00015926,2]
[382653380,1756696641023,-480.0,0.00015926,2]
[382653381,1756696641051,-480.0,0.00015926,2]
[382653382,1756696641538,-1.56871688,0.00015926,2]
[382653383,1756696641552,-2316.87256624,0.00015926,2]
[382653384,1756696641570,-10000.01,0.00015926,2]
[382653385,1756696641588,-10000.01,0.00015926,2]
[382653386,1756696641625,-3727.15895159,0.00015926,2]
[382653387,1756696641655,-371.7092093,0.00015927,2]
[382653390,1756696645371,480.0,0.00015926,2]
[382653391,1756696646101,480.0,0.00015926,2]
[382653393,1756696651561,158.73558835,0.0001592,2]
[382653394,1756696657517,480.0,0.00015926,2]
[382653395,1756696659277,203.53808987,0.00015926,2]
[382653396,1756696659299,492.86191013,0.00015926,2]
[382653401,1756696776932,-221.42610517,0.00015751,2]
[382653402,1756696855688,-50.57389483,0.00015751,2]
[382653403,1756696855718,-300.0,0.00015925,2]
[382653404,1756696855746,-1200.0,0.00015925,2]
[382653405,1756696855774,-480.0,0.00015926,2]
[382653406,1756696855805,-480.0,0.00015926,2]
[382653407,1756696855834,-502.59,0.00015926,2]
[382653408,1756696855863,-1160.16,0.00015926,2]
[382653409,1756696855891,-480.0,0.00015926,2]
[382653410,1756696855918,-213.36221034,0.00015926,2]
[382653411,1756696856040,-266.63778966,0.00015926,2]
[382653412,1756696856067,-572.8,0.00015926,2]
[382653413,1756696856296,-480.0,0.00015926,2]
[382653414,1756696856334,-480.0,0.00015926,2]
[382653415,1756696856362,-480.0,0.00015926,2]
[382653416,1756696856392,-971.79,0.00015926,2]
[382653417,1756696856421,-480.0,0.00015926,2]
[382653418,1756696856449,-481.4279086,0.00015926,2]
[382653419,1756696856477,-480.0,0.00015926,2]
[382653420,1756696856507,-80.74860348,0.00015926,2]
[382653421,1756696856616,-453.20139652,0.00015926,2]
[382653422,1756696856645,-480.0,0.00015926,2]
[382653423,1756696856676,-704.46,0.00015926,2]
[382653424,1756696856707,-498.22095903,0.00015926,2]
[382653425,1756696856736,-480.0,0.00015926,2]
[382653426,1756696856765,-1021.53,0.00015926,2]
[382653427,1756696856796,-483.75266131,0.00015926,2]
[382653428,1756696856828,-480.0,0.00015926,2]
[382653429,1756696856856,-317.67996628,0.00015926,2]
[382653430,1756696856971,-162.32003372,0.00015926,2]
[382653431,1756696857001,-2083.05,0.00015926,2]
[382653432,1756696857030,-222.43187667,0.00015926,2]
[382653433,1756696857059,-480.0,0.00015926,2]
[382653434,1756696857090,-507.54,0.00015926,2]
[382653435,1756696857119,-480.0,0.00015926,2]
[382653436,1756696857149,-480.0,0.00015926,2]
[382653437,1756696857177,-480.0,0.00015926,2]
[382653438,1756696857216,-480.0,0.00015926,2]
[382653439,1756696857248,-500.0,0.00015926,2]
[382653440,1756696857279,-500.0,0.00015926,2]
[382653441,1756696857317,-500.0,0.00015926,2]
[382653442,1756696857349,-500.0,0.00015926,2]
[382653443,1756696857380,-500.0,0.00015926,2]
[382653444,1756696857409,-500.0,0.00015926,2]
[382653445,1756696857439,-531.86145741,0.00015926,2]
[382653446,1756696857469,-500.0,0.00015926,2]
[382653447,1756696857498,-476.28708518,0.00015926,2]
[382653448,1756696857550,-23.71291482,0.00015926,2]
[382653449,1756696857584,-500.0,0.00015926,2]
[382653450,1756696857614,-500.0,0.00015926,2]
[382653451,1756696857645,-500.0,0.00015926,2]
[382653452,1756696857675,-500.0,0.00015926,2]
[382653453,1756696857704,-500.0,0.00015926,2]
[382653454,1756696857733,-500.0,0.00015926,2]
[382653455,1756696857764,-500.0,0.00015926,2]
[382653456,1756696857798,-500.0,0.00015926,2]
[382653457,1756696857829,-500.0,0.00015926,2]
[382653458,1756696857859,-452.58417036,0.00015926,2]
[382653459,1756696858054,-47.41582964,0.00015926,2]
[382653460,1756696858097,-500.0,0.00015926,2]
[382653461,1756696858133,-500.0,0.00015926,2]
[382653462,1756696858174,-472.30302018,0.00015926,2]
[382653463,1756696858214,-500.0,0.00015926,2]
[382653464,1756696858254,-500.0,0.00015926,2]
[382653465,1756696858295,-500.0,0.00015926,2]
[382653466,1756696858335,-500.0,0.00015926,2]
[382653467,1756696858373,-500.0,0.00015926,2]
[382653468,1756696858408,-460.99663058,0.00015927,2]
[382653469,1756696862576,300.0,0.00015926,2]
[382653470,1756696864584,480.0,0.00015926,2]
[382653471,1756696866532,258.5790392,0.00015826,2]
[382653472,1756696866555,2.89664947,0.00015826,2]
[382653473,1756696866818,1926.59,0.00015926,2]
[382653474,1756696867598,301.526,0.0001592,2]
[382653475,1756696868976,1173.58,0.00015926,2]
[382653476,1756696869326,480.0,0.00015926,2]
[382653477,1756696877976,480.0,0.00015926,2]
[382653478,1756696899769,-152.0,0.00015767,2]
[382653479,1756696902178,-186.02650841,0.00015767,2]
[382653480,1756696903664,-218.82869721,0.00015767,2]
[382653482,1756696906994,-199.51661605,0.00015767,2]
[382653483,1756696910653,-239.85432031,0.00015767,2]
[382653484,1756696935949,-300.0,0.00015925,2]
[382653485,1756696935978,-1200.0,0.00015925,2]
[382653486,1756696936008,-480.0,0.00015926,2]
[382653487,1756696936038,-838.82,0.00015926,2]
[382653488,1756696936068,-480.0,0.00015926,2]
[382653489,1756696936096,-480.0,0.00015926,2]
[382653490,1756696936126,-963.53,0.00015926,2]
[382653491,1756696936157,-32.74,0.00015926,2]
[382653492,1756696936293,-449.83,0.00015926,2]
[382653493,1756696936325,-541.38,0.00015926,2]
[382653494,1756696936356,-1131.82,0.00015926,2]
[382653495,1756696936385,-480.0,0.00015926,2]
[382653496,1756696936415,-480.0,0.00015926,2]
[382653497,1756696936445,-480.0,0.00015926,2]
[382653498,1756696936472,-1136.10799795,0.00015926,2]
[382653499,1756696936501,-121.7340041,0.00015926,2]
[382653500,1756696936609,-358.2659959,0.00015926,2]
[382653501,1756696936640,-480.0,0.00015926,2]
[382653502,1756696936671,-480.0,0.00015926,2]
[382653503,1756696936703,-480.0,0.00015926,2]
[382653504,1756696936731,-500.0,0.00015926,2]
[382653505,1756696936761,-500.0,0.00015926,2]
[382653506,1756696936791,-500.0,0.00015926,2]
[382653507,1756696936819,-513.57349716,0.00015926,2]
[382653508,1756696936851,-500.0,0.00015926,2]
[382653509,1756696936881,-500.0,0.00015926,2]
[382653510,1756696937088,-500.0,0.00015926,2]
[382653511,1756696937121,-500.0,0.00015926,2]
[382653512,1756696937152,-500.0,0.00015926,2]
[382653513,1756696937182,-500.0,0.00015926,2]
[382653514,1756696937212,-500.0,0.00015926,2]
[382653515,1756696937242,-500.0,0.00015926,2]
[382653516,1756696937272,-500.0,0.00015926,2]
[382653517,1756696937303,-500.0,0.00015926,2]
[382653518,1756696937333,-500.0,0.00015926,2]
[382653519,1756696937362,-500.0,0.00015926,2]
[382653520,1756696937523,-500.0,0.00015926,2]
[382653521,1756696937553,-500.0,0.00015926,2]
[382653522,1756696937583,-500.0,0.00015926,2]
[382653523,1756696937613,-500.0,0.00015926,2]
[382653524,1756696937646,-500.0,0.00015926,2]
[382653525,1756696937676,-500.0,0.00015926,2]
[382653526,1756696937706,-500.0,0.00015926,2]
[382653527,1756696937911,-500.0,0.00015926,2]
[382653528,1756696937941,-480.91751528,0.00015926,2]
[382653529,1756696937972,-500.0,0.00015926,2]
[382653530,1756696938128,-500.0,0.00015926,2]
[382653531,1756696938163,-500.0,0.00015926,2]
[382653532,1756696938196,-500.0,0.00015926,2]
[382653533,1756696938227,-500.0,0.00015926,2]
[382653534,1756696938259,-500.0,0.00015926,2]
[382653535,1756696938290,-500.0,0.00015926,2]
[382653536,1756696938326,-200.74433166,0.00015926,2]
[382653537,1756696938358,-500.0,0.00015926,2]
[382653538,1756696938391,-500.0,0.00015926,2]
[382653539,1756696938832,480.0,0.00015926,2]
[382653540,1756696939173,480.0,0.00015926,2]
[382653541,1756696939411,347.09230901,0.00015926,2]
[382653542,1756696939819,291.42902767,0.00015926,2]
[382653543,1756696939844,188.57097233,0.00015926,2]
[382653544,1756696940062,480.0,0.00015926,2]
[382653545,1756696943416,787.25,0.00015926,2]
[382653546,1756696945686,548.08,0.00015926,2]
[382653547,1756696946067,480.0,0.00015926,2]
[382653548,1756697029622,10000.01,0.00015017,2]
[382653549,1756697029644,10000.01,0.00015017,2]
[382653550,1756697029666,10000.01,0.00015017,2]
[382653551,1756697029687,548.440705,0.00015017,2]
[382653553,1756697076081,-300.0,0.00015925,2]
[382653554,1756697076109,-672.37,0.00015926,2]
[382653555,1756697076140,-480.0,0.00015926,2]
[382653556,1756697076168,-480.0,0.00015926,2]
[382653557,1756697076198,-591.51,0.00015926,2]
[382653558,1756697076231,-480.0,0.00015926,2]
[382653559,1756697076260,-956.66,0.00015926,2]
[382653560,1756697076288,-480.0,0.00015926,2]
[382653561,1756697076315,-480.0,0.00015926,2]
[382653562,1756697076432,-480.0,0.00015926,2]
[382653563,1756697076460,-481.81904671,0.00015926,2]
[382653564,1756697076487,-759.2,0.00015926,2]
[382653565,1756697076515,-480.0,0.00015926,2]
[382653566,1756697076544,-480.0,0.00015926,2]
[382653567,1756697076572,-783.37,0.00015926,2]
[382653568,1756697076599,-1007.97,0.00015926,2]
[382653569,1756697076629,-73.03190658,0.00015926,2]
[382653570,1756697083341,-909.22809342,0.00015926,2]
[382653571,1756697083371,-1014.77,0.00015926,2]
[382653572,1756697083401,-482.26819765,0.00015926,2]
[382653573,1756697083432,-731.37,0.00015926,2]
[382653574,1756697083459,-480.0,0.00015926,2]
[382653575,1756697083486,-1071.14,0.00015926,2]
[382653576,1756697083516,-142.45741786,0.00015926,2]
[382653577,1756697083646,-337.54258214,0.00015926,2]
[382653578,1756697083674,-480.0,0.00015926,2]
[382653579,1756697083700,-694.25,0.00015926,2]
[382653580,1756697083728,-480.0,0.00015926,2]
[382653581,1756697083756,-480.0,0.00015926,2]
[382653582,1756697083784,-480.0,0.00015926,2]
[382653583,1756697083813,-480.0,0.00015926,2]
[382653584,1756697083841,-480.0,0.00015926,2]
[382653585,1756697083869,-185.50057652,0.00015926,2]
[382653586,1756697083897,-482.34310288,0.00015926,2]
[382653587,1756697083928,-360.73747692,0.00015926,2]
[382653588,1756697084026,-119.26252308,0.00015926,2]
[382653589,1756697084054,-483.86,0.00015926,2]
[382653590,1756697084082,-480.0,0.00015926,2]
[382653591,1756697084112,-2166.75,0.00015926,2]
[382653592,1756697084142,-551.7,0.00015926,2]
[382653593,1756697084170,-480.0,0.00015926,2]
[382653594,1756697084199,-534.04,0.00015926,2]
[382653595,1756697084377,-480.0,0.00015926,2]
[382653596,1756697084406,-1038.3,0.00015926,2]
[382653597,1756697084435,-1001.46641687,0.00015926,2]
[382653598,1756697084465,-500.0,0.00015926,2]
[382653599,1756697084494,-500.0,0.00015926,2]
[382653600,1756697084524,-500.0,0.00015926,2]
[382653601,1756697084553,-500.0,0.00015926,2]
[382653602,1756697084583,-460.47716626,0.00015926,2]
[382653603,1756697084792,-39.52283374,0.00015926,2]
[382653604,1756697084824,-500.0,0.00015926,2]
[382653605,1756697084854,-500.0,0.00015926,2]
[382653606,1756697084884,-500.0,0.00015926,2]
[382653607,1756697084915,-500.0,0.00015926,2]
[382653608,1756697084946,-500.0,0.00015926,2]
[382653609,1756697084978,-500.0,0.00015926,2]
[382653610,1756697085009,-500.0,0.00015926,2]
[382653611,1756697085041,-502.17055135,0.00015926,2]
[382653612,1756697085072,-500.0,0.00015926,2]
[382653613,1756697085102,-163.48995646,0.00015927,2]
[382653614,1756697085775,480.0,0.00015926,2]
[382653615,1756697086254,109.6433169,0.00015926,2]
[382653616,1756697086276,370.3566831,0.00015926,2]
[382653617,1756697086579,480.0,0.00015926,2]
[382653618,1756697087483,480.0,0.00015926,2]
[382653619,1756697088615,500.0,0.00015926,2]
[382653620,1756697088674,500.0,0.00015926,2]
[382653621,1756697088986,301.51938595,0.00015926,2]
[382653622,1756697091786,480.0,0.00015926,2]
[382653623,1756697092168,480.0,0.00015926,2]
[382653624,1756697097826,664.37,0.00015926,2]
[382653625,1756697098557,480.0,0.00015926,2]
[382653626,1756697100308,480.0,0.00015926,2]
[382653627,1756697100921,480.0,0.00015926,2]
[382653628,1756697102949,219.0,0.00015926,2]
[382653629,1756697103023,300.0,0.00015926,2]
[382653630,1756697104134,2001.753413,0.000151,2]
[382653631,1756697105780,480.0,0.00015926,2]
[382653639,1756697133480,429.29198068,0.0002739,120]
[382653640,1756697156201,-1194.0,0.00015926,2]
[382653641,1756697156231,-480.0,0.00015926,2]
[382653642,1756697156261,-687.73,0.00015926,2]
[382653643,1756697156289,-480.0,0.00015926,2]
[382653644,1756697156318,-480.0,0.00015926,2]
[382653645,1756697156347,-480.0,0.00015926,2]
[382653646,1756697156379,-480.0,0.00015926,2]
[382653647,1756697156409,-216.29,0.00015926,2]
[382653648,1756697156545,-1003.97,0.00015926,2]
[382653649,1756697156573,-480.0,0.00015926,2]
[382653650,1756697156601,-480.0,0.00015926,2]
[382653651,1756697156629,-672.2,0.00015926,2]
[382653652,1756697156657,-480.0,0.00015926,2]
[382653653,1756697156686,-480.0,0.00015926,2]
[382653654,1756697156715,-480.0,0.00015926,2]
[382653655,1756697156744,-524.85,0.00015926,2]
[382653656,1756697156774,-345.17565042,0.00015926,2]
[382653657,1756697157104,-480.0,0.00015926,2]
[382653658,1756697157136,-480.0,0.00015926,2]
[382653659,1756697157166,-874.88,0.00015926,2]
[382653660,1756697157195,-696.45,0.00015926,2]
[382653661,1756697157224,-160.0,0.00015926,2]
[382653662,1756697157253,-480.0,0.00015926,2]
[382653663,1756697157284,-769.95,0.00015926,2]
[382653664,1756697157314,-500.0,0.00015926,2]
[382653665,1756697157345,-500.0,0.00015926,2]
[382653666,1756697157435,-500.0,0.00015926,2]
[382653667,1756697157465,-500.0,0.00015926,2]
[382653668,1756697157495,-500.0,0.00015926,2]
[382653669,1756697157524,-500.0,0.00015926,2]
[382653670,1756697157555,-617.67549696,0.00015926,2]
[382653671,1756697157583,-456.26727533,0.00015926,2]
[382653672,1756697157612,-500.0,0.00015926,2]
[382653673,1756697157640,-631.43638825,0.00015926,2]
[382653674,1756697157668,-214.03548761,0.00015926,2]
[382653675,1756697157695,-500.0,0.00015926,2]
[382653676,1756697157967,-500.0,0.00015926,2]
[382653677,1756697157997,-500.0,0.00015926,2]
[382653678,1756697158026,-193.14854211,0.00015926,2]
[382653679,1756697158054,-199.58868889,0.00015926,2]
[382653680,1756697158083,-500.0,0.00015926,2]
[382653681,1756697158111,-500.0,0.00015926,2]
[382653682,1756697158143,-500.0,0.00015926,2]
[382653683,1756697158178,-500.0,0.00015926,2]
[382653684,1756697158206,-500.0,0.00015926,2]
[382653685,1756697158238,-500.0,0.00015926,2]
[382653686,1756697158268,-500.0,0.00015926,2]
[382653687,1756697158411,-500.0,0.00015926,2]
[382653688,1756697158440,-500.0,0.00015926,2]
[382653689,1756697158470,-181.2707098,0.00015926,2]
[382653698,1756697169616,-176.16977679,0.000159,2]
[382653699,1756697172632,-52.62145077,0.000159,2]
[382653713,1756697193246,791.387087,0.00013699,2]
[382653734,1756697236315,-300.0,0.00015925,2]
[382653736,1756697236343,-180.0,0.00015925,2]
[382653737,1756697236376,-480.0,0.00015926,2]
[382653738,1756697236406,-480.0,0.00015926,2]
[382653739,1756697236436,-484.48363425,0.00015926,2]
[382653740,1756697236467,-1137.02,0.00015926,2]
[382653741,1756697236496,-481.47504995,0.00015926,2]
[382653742,1756697236531,-539.26,0.00015926,2]
[382653743,1756697236559,-799.25,0.00015926,2]
[382653744,1756697236865,-482.39644616,0.00015926,2]
[382653745,1756697236897,-866.89,0.00015926,2]
[382653746,1756697236930,-459.68315562,0.00015926,2]
[382653747,1756697236962,-942.97,0.00015926,2]
[382653748,1756697236991,-480.0,0.00015926,2]
[382653749,1756697237025,-482.3668287,0.00015926,2]
[382653750,1756697237054,-480.0,0.00015926,2]
[382653751,1756697237106,-1682.81,0.00015926,2]
[382653752,1756697237137,-1047.63,0.00015926,2]
[382653753,1756697237172,-636.08,0.00015926,2]
[382653754,1756697237203,-480.0,0.00015926,2]
[382653755,1756697237233,-480.0,0.00015926,2]
[382653756,1756697237261,-481.41751036,0.00015926,2]
[382653757,1756697237431,-480.0,0.00015926,2]
[382653758,1756697237461,-480.0,0.00015926,2]
[382653759,1756697237489,-897.25,0.00015926,2]
[382653760,1756697237518,-186.02650841,0.00015926,2]
[382653761,1756697237548,-632.66,0.00015926,2]
[382653762,1756697237577,-480.0,0.00015926,2]
[382653763,1756697237606,-525.24,0.00015926,2]
[382653764,1756697237635,-480.95839622,0.00015926,2]
[382653765,1756697237663,-480.0,0.00015926,2]
[382653766,1756697237691,-233.80715813,0.00015926,2]
[382653767,1756697237900,-248.12587448,0.00015926,2]
[382653768,1756697237930,-1814.9,0.00015926,2]
[382653769,1756697237958,-480.0,0.00015926,2]
[382653770,1756697237985,-401.46772138,0.00015926,2]
[382653771,1756697238012,-500.0,0.00015926,3]
[382653772,1756697238181,-571.01,0.00015926,2]
[382653773,1756697238494,-3494.37,0.00015926,2]
[382653774,1756697238524,-528.72,0.00015926,2]
[382653775,1756697238558,-486.37521626,0.00015926,2]
[382653776,1756697238672,-4691.21,0.00015926,2]
[382653777,1756697238746,-617.59,0.00015926,2]
[382653778,1756697238775,-776.62326739,0.00015927,2]
[382653780,1756697239491,469.39345228,0.00015926,2]
[382653781,1756697239745,482.02245497,0.00015926,2]
[382653782,1756697239787,480.0,0.00015926,2]
[382653783,1756697239848,480.0,0.00015926,2]
[382653784,1756697239880,500.0,0.000159,3]
[382653785,1756697240458,480.0,0.00015926,2]
[382653787,1756697244352,500.0,0.000159,3]
[382653788,1756697244587,480.0,0.00015926,2]
[382653789,1756697244777,482.3856939,0.00015926,2]
[382653790,1756697245270,480.0,0.00015925,2]
[382653791,1756697246599,480.0,0.00015926,2]
[382653792,1756697247020,480.0,0.00015926,2]
[382653793,1756697247881,916.8,0.00015926,2]
[382653794,1756697248044,500.98186407,0.00015926,2]
[382653795,1756697248067,350.28813593,0.00015926,2]
[382653797,1756697249106,482.08901058,0.00015926,2]
[382653800,1756697250832,480.0,0.00015926,2]
[382653801,1756697251406,1018.47,0.00015926,2]
[382653802,1756697252293,731.93,0.00015926,2]
[382653803,1756697253653,1441.59,0.00015926,2]
[382653806,1756697256183,480.0,0.00015926,2]
[382653807,1756697257502,500.0,0.000159,3]
[382653808,1756697259599,480.0,0.00015926,2]
[382653824,1756697286380,-300.0,0.00015925,2]
[382653825,1756697286416,-480.0,0.00015926,2]
[382653826,1756697286447,-480.0,0.00015926,2]
[382653827,1756697286476,-480.0,0.00015926,2]
[382653828,1756697286506,-1201.64,0.00015926,2]
[382653829,1756697286535,-819.62,0.00015926,2]
[382653830,1756697286566,-500.0,0.00015926,3]
[382653831,1756697286596,-480.0,0.00015926,2]
[382653832,1756697286705,-814.86,0.00015926,2]
[382653833,1756697286734,-500.0,0.00015926,3]
[382653834,1756697286764,-674.37,0.00015926,2]
[382653835,1756697286794,-500.0,0.00015926,3]
[382653836,1756697286820,-480.0,0.00015926,2]
[382653837,1756697286848,-593.51,0.00015926,2]
[382653838,1756697286878,-500.0,0.00015926,3]
[382653839,1756697286907,-832.42,0.00015926,2]
[382653840,1756697287007,-480.0,0.00015926,2]
[382653841,1756697287037,-480.0,0.00015926,2]
[382653842,1756697287067,-491.63,0.00015926,2]
[382653843,1756697287094,-480.0,0.00015926,2]
[382653844,1756697287122,-500.0,0.00015926,3]
[382653845,1756697287335,-480.0,0.00015926,2]
[382653846,1756697288186,-9345.29526202,0.00015927,2]
[382653847,1756697288199,-10000.01,0.00015927,2]
[382653848,1756697288228,-10000.01,0.00015927,2]
[382653849,1756697288242,-10000.01,0.00015927,2]
[382653850,1756697288261,-10000.01,0.00015927,2]
[382653851,1756697288298,-791.15,0.00015926,2]
[382653853,1756697288308,-9208.86,0.00015927,2]
[382653858,1756697296458,-480.0,0.00015926,2]
[382653859,1756697296488,-500.0,0.00015926,3]
[382653860,1756697296519,-480.0,0.00015926,2]
[382653861,1756697296549,-480.0,0.00015926,2]
[382653862,1756697296580,-500.0,0.00015926,3]
[382653863,1756697296610,-480.0,0.00015926,2]
[382653864,1756697296639,-500.0,0.00015926,3]
[382653865,1756697296669,-902.49,0.00015926,2]
[382653866,1756697296761,-1355.03,0.00015926,2]
[382653867,1756697296794,-500.0,0.00015926,3]
[382653868,1756697296824,-454.41309683,0.00015927,2]
[382653869,1756697296927,-608.29654822,0.00015926,2]
[382653870,1756697296956,-3402.29309722,0.00015927,2]
[382653871,1756697297046,-1978.83070912,0.00015927,2]
[382653872,1756697297074,-327.0,0.00015961,2]
[382653873,1756697297102,-327.0,0.00015961,2]
[382653874,1756697297130,-327.0,0.00015961,2]
[382653875,1756697297157,-327.0,0.00015961,2]
[382653876,1756697297187,-327.0,0.00015961,2]
[382653877,1756697297216,-327.0,0.00015961,2]
[382653878,1756697297434,-151.0,0.00016,2]
[382653879,1756697297465,-154.79,0.00016016,3]
[382653880,1756697297496,-464.38,0.00016016,3]
[382653881,1756697297526,-151.0,0.00016018,2]
[382653882,1756697297556,-125.00858176,0.00016018,2]
[382653883,1756697297681,-25.99141824,0.00016018,2]
[382653884,1756697297710,-151.0,0.00016018,2]
[382653885,1756697297739,-288.67352146,0.00016018,2]
[382653886,1756697297769,-250.0,0.00016018,2]
[382653887,1756697297799,-250.0,0.00016018,2]
[382653888,1756697297827,-250.0,0.00016018,2]
[382653889,1756697297855,-260.39257541,0.00016018,2]
[382653890,1756697297883,-784.37838218,0.00016021,2]
[382653891,1756697298017,-1513.24277907,0.00016021,2]
[382653892,1756697298038,-1978.83070912,0.00016021,2]
[382653893,1756697298060,-327.0,0.00016021,2]
[382653894,1756697298098,-1660.06471723,0.00016021,2]
[382653895,1756697298133,-327.0,0.00016022,2]
[382653896,1756697298164,-327.0,0.00016022,2]
[382653897,1756697298194,-327.0,0.00016022,2]
[382653898,1756697298224,-327.0,0.00016022,2]
[382653899,1756697298255,-327.0,0.00016022,2]
[382653900,1756697298285,-327.0,0.00016022,2]
[382653901,1756697298315,-220.6811759,0.00016022,2]
[382653902,1756697298345,-547.51821374,0.00016022,2]
[382653903,1756697298490,-500.0,0.00015926,3]
[382653904,1756697298519,-1219.48178626,0.00016022,2]
[382653905,1756697298547,-1767.0,0.00016022,2]
[382653906,1756697298576,-1260.04642748,0.00016022,2]
[382653907,1756697298719,-480.0,0.00015926,2]
[382653908,1756697298749,-506.95357252,0.00016022,2]
[382653909,1756697298778,-1767.0,0.00016022,2]
[382653910,1756697298807,-536.65634386,0.00016022,2]
[382653911,1756697298839,-1651.79016724,0.00016022,2]
[382653912,1756697298926,-115.20983276,0.00016022,2]
[382653913,1756697298956,-1767.0,0.00016022,2]
[382653914,1756697298985,-1767.0,0.00016022,2]
[382653915,1756697299016,-934.59033448,0.00016022,2]
[382653916,1756697299213,-832.40966552,0.00016022,2]
[382653917,1756697299243,-1767.0,0.00016022,2]
[382653918,1756697299273,-1767.0,0.00016022,2]
[382653919,1756697299684,-500.0,0.00015926,3]
[382653920,1756697299694,-602.30468903,0.00016022,2]
[382653921,1756697299707,-536.65634386,0.00016022,2]
[382653922,1756697299729,-628.03896711,0.00016022,2]
[382653923,1756697299738,-1138.96103289,0.00016022,2]
[382653924,1756697299756,-115.20983276,0.00016022,2]
[382653925,1756697299770,-512.82913435,0.00016022,2]
[382653926,1756697299779,-1254.17086565,0.00016022,2]
[382653927,1756697299793,-512.82913435,0.00016022,2]
[382653928,1756697299802,-1254.17086565,0.00016022,2]
[382653929,1756697299817,-512.82913435,0.00016022,2]
[382653930,1756697299826,-1254.17086565,0.00016022,2]
[382653931,1756697299848,-512.82913435,0.00016022,2]
[382653932,1756697299857,-319.58053117,0.00016026,2]
[382653933,1756697299870,-525.06946883,0.00016026,2]
[382653934,1756697299880,-682.59,0.00016026,2]
[382653935,1756697299889,-480.0,0.00016026,2]
[382653936,1756697299899,-79.34053117,0.00016026,2]
[382653937,1756697299912,-400.65946883,0.00016026,2]
[382653938,1756697299922,-480.0,0.00016026,2]
[382653939,1756697299932,-480.0,0.00016026,2]
[382653940,1756697299941,-406.34053117,0.00016026,2]
[382653941,1756697299955,-73.65946883,0.00016026,2]
[382653942,1756697299964,-480.0,0.00016026,2]
[382653943,1756697299974,-713.53120013,0.00016026,2]
[382653944,1756697306136,-218.4163968,0.00015751,2]
[382653945,1756697309620,-148.87644439,0.00015751,2]
[382653946,1756697309643,-7.72405067,0.00015751,2]
[382653947,1756697318371,-221.27986065,0.00015751,2]
[382653948,1756697320093,-336.02090687,0.00015751,2]
[382653949,1756697324871,-497.54897362,0.00015751,2]
[382653951,1756697329327,-259.08012882,0.00015751,2]